bitfinex/quotes_ETHUSD_20250411
["timestamp","ask_amount","ask_price","bid_price","bid_amount"]
[1744376571717,6.42802,1555.7,1555.4,7.22498]
[1744376571923,6.49225361,1555.7,1555.4,7.22498]
[1744376572097,12.92049361,1555.7,1555.4,0.7958]
[1744376572292,6.4284,1555.6,1555.4,0.7958]
[1744376572499,12.92061361,1555.7,1555.4,0.7958]
[1744376572693,12.92061361,1555.7,1555.3,12.85899]
[1744376573099,12.92061361,1555.7,1555.3,14.64024138]
[1744376573889,6.49225361,1555.7,1555.4,6.42916]
[1744376574085,12.92037361,1555.7,1555.4,6.42916]
[1744376574825,6.49225361,1555.7,1555.4,6.42916]
[1744376575127,12.92037361,1555.7,1555.4,6.42916]
[1744376576032,6.49225361,1555.7,1555.4,6.42916]
[1744376577444,6.49225361,1555.7,1555.3,14.64024138]
[1744376577445,12.92051361,1555.7,1555.3,14.64024138]
[1744376577600,6.4284,1555.6,1555.3,14.64027138]
[1744376577801,12.92061361,1555.7,1555.4,1.46402714]
[1744376578000,12.92061361,1555.7,1555.3,14.64027138]
[1744376580200,6.42839,1555.6,1555.3,8.21074138]
[1744376580400,6.55749,1555.6,1555.3,8.21074138]
[1744376580600,6.62172361,1555.6,1555.3,8.21074138]
[1744376580836,6.62172361,1555.6,1555.3,14.64024138]
[1744376581038,6.49262361,1555.6,1555.3,14.64024138]
[1744376581705,6.49231361,1555.7,1555.4,6.42918]
[1744376582007,12.92048361,1555.7,1555.4,6.42918]
[1744376582211,12.92045361,1555.7,1555.4,6.42918]
[1744376583027,12.92045361,1555.7,1555.3,8.21074138]
[1744376583232,6.4284,1555.6,1555.3,8.21074138]
[1744376583540,12.8587,1555.4,1555.1,3.0]
[1744376583847,6.42963,1555.3,1555.0,24.73862614]
[1744376585842,6.42963,1555.3,1555.0,18.30785614]
[1744376586139,6.42963,1555.3,1555.0,24.73859614]
[1744376586345,6.43035,1555.2,1555.0,0.8092]
[1744376586506,6.43035,1555.2,1554.7,60.20687614]
[1744376586507,0.83636861,1555.2,1554.7,60.20687614]
[1744376586705,0.83636861,1555.2,1554.7,16.52587614]
[1744376586706,6.43097,1555.0,1554.7,16.52587614]
[1744376586911,12.86119,1555.1,1554.8,6.43164]
[1744376587111,6.43099,1555.0,1554.7,3.0]
[1744376587344,6.43173,1554.8,1554.6,4.49271614]
[1744376587641,6.43173,1554.8,1554.6,6.66191614]
[1744376587936,12.86366,1554.8,1554.5,6.43258]
[1744376588127,12.86366,1554.8,1554.4,12.15309845]
[1744376588128,6.49646361,1554.7,1554.4,18.58627845]
[1744376588303,6.49646361,1554.7,1554.4,28.4317383]
[1744376588506,6.43293,1554.5,1554.4,7.66038231]
[1744376588754,6.56203,1554.5,1554.4,7.66038231]
[1744376588922,6.56203,1554.5,1554.1,7.66038231]
[1744376588923,0.1291,1554.2,1554.1,7.66038231]
[1744376589109,6.62750361,1554.2,1554.1,7.66038231]
[1744376589307,8.57704797,1554.2,1554.1,7.66038231]
[1744376590036,12.86714,1554.4,1554.1,7.66038231]
[1744376590201,0.19333361,1554.3,1554.1,7.66038231]
[1744376590402,13.06118361,1554.3,1554.1,7.66038231]
[1744376590601,6.563,1554.3,1554.1,7.66038231]
[1744376590830,6.49813361,1554.3,1554.1,7.66038231]
[1744376591046,6.49766361,1554.4,1554.1,14.09490231]
[1744376591337,6.43389,1554.3,1554.1,7.66038231]
[1744376591705,12.86786,1554.3,1554.1,7.66038231]
[1744376591906,0.06423361,1554.2,1554.1,7.66038231]
[1744376592745,6.49840361,1554.2,1554.1,7.66038231]
[1744376592947,7.79163297,1554.2,1554.1,7.66038231]
[1744376593157,7.92073297,1554.2,1554.1,7.66038231]
[1744376593339,0.19333361,1554.2,1554.1,7.66038231]
[1744376593710,6.62750361,1554.2,1554.1,7.66038231]
[1744376594419,6.62750361,1554.2,1553.8,10.09769614]
[1744376594629,13.06189361,1554.2,1553.8,10.09769614]
[1744376594937,0.1291,1554.2,1553.9,6.43539]
[1744376595639,0.1291,1554.2,1553.9,8.08869861]
[1744376596057,0.1291,1554.2,1553.9,14.52408861]
[1744376596360,0.06423361,1554.3,1554.1,6.43437]
[1744376596517,6.49718361,1554.5,1554.1,6.43437]
[1744376596721,6.43335,1554.4,1554.0,7.26149]
[1744376596925,0.19333361,1554.3,1554.0,7.96990186]
[1744376597124,6.43444,1554.2,1553.8,10.09773614]
[1744376597324,0.19333361,1554.3,1553.9,6.43535]
[1744376597528,0.19333361,1554.3,1553.9,12.87063]
[1744376597817,0.19333361,1554.3,1554.0,6.43489]
[1744376598251,6.62713361,1554.3,1554.0,6.43489]
[1744376599023,6.43497,1554.1,1553.7,7.35474156]
[1744376599260,6.49929361,1554.0,1553.7,0.91868156]
[1744376599459,6.49929361,1554.0,1553.6,16.53505614]
[1744376600128,0.1291,1553.9,1553.6,6.43657]
[1744376600727,0.1291,1553.9,1553.6,6.43654]
[1744376600918,0.1291,1553.9,1553.6,11.81052615]
[1744376601125,0.06423361,1554.0,1553.7,6.43613]
[1744376602064,0.1291,1554.1,1553.8,12.87132]
[1744376602269,6.62793361,1554.1,1553.7,6.43616]
[1744376602425,6.43501,1554.0,1553.6,16.53501614]
[1744376602631,0.06423361,1553.9,1553.6,10.09839614]
[1744376603147,0.06423361,1553.9,1553.6,16.53492614]
[1744376604229,0.1291,1554.1,1553.7,6.43609]
[1744376604443,13.06292361,1554.1,1553.7,6.43609]
[1744376604638,14.30498236,1554.1,1553.7,6.43609]
[1744376604841,6.43508,1554.0,1553.6,16.53503614]
[1744376605039,7.5321,1554.3,1554.0,6.43472]
[1744376605428,0.19333361,1554.3,1554.0,6.43472]
[1744376605766,0.19333361,1554.5,1554.2,3.66191614]
[1744376605929,0.1291,1554.7,1554.4,6.43323]
[1744376606265,0.06423361,1554.7,1554.4,10.09514614]
[1744376606478,6.49636361,1554.7,1554.4,3.66191614]
[1744376606757,12.92865361,1554.7,1554.3,7.56533161]
[1744376607122,6.43314,1554.5,1554.1,3.8332]
[1744376607365,6.49769361,1554.4,1554.1,3.8332]
[1744376607530,6.49769361,1554.4,1554.1,7.26777]
[1744376608056,0.06423361,1554.5,1554.1,0.8332]
[1744376608261,0.06423361,1554.5,1554.2,6.43404]
[1744376608463,6.49729361,1554.5,1554.1,13.70213]
[1744376608661,6.49729361,1554.5,1554.1,15.43853461]
[1744376608863,6.49729361,1554.5,1554.2,6.43412]
[1744376609982,0.06423361,1554.5,1554.2,3.66191614]
[1744376610157,0.06423361,1554.5,1554.3,6.43359]
[1744376610363,6.62585361,1554.6,1554.3,6.43359]
[1744376610941,7.93164997,1554.6,1554.2,6.43409]
[1744376611174,6.43349,1554.4,1554.1,0.8332]
[1744376611470,0.06423361,1554.4,1554.1,7.26765]
[1744376611764,6.49725361,1554.5,1554.2,6.43416]
[1744376611937,12.93038361,1554.5,1554.2,6.43416]
[1744376612138,12.93038361,1554.5,1554.1,7.26765]
[1744376612371,6.43342,1554.4,1554.1,7.26765]
[1744376612535,6.43342,1554.4,1554.1,13.70213]
[1744376612738,6.43342,1554.4,1554.1,13.70211]
[1744376612939,6.43342,1554.4,1554.1,15.43851261]
[1744376613164,12.93057361,1554.5,1554.2,6.43416]
[1744376613461,1.43489636,1554.6,1554.2,6.43416]
[1744376613462,12.86361,1554.8,1554.4,10.88790614]
[1744376613663,12.92784361,1554.8,1554.5,6.43292]
[1744376613884,12.92784361,1554.8,1554.4,17.32109614]
[1744376614384,12.92784361,1554.8,1554.2,6.43417]
[1744376614385,1.36992797,1554.8,1554.2,10.92175614]
[1744376614587,6.43287,1554.6,1554.3,3.0]
[1744376614786,6.49717361,1554.5,1554.2,10.92175614]
[1744376615082,6.49717361,1554.5,1554.2,0.8258]
[1744376615388,6.49717361,1554.5,1554.2,7.2599]
[1744376615793,6.49717361,1554.5,1554.2,13.69397]
[1744376616091,0.06423361,1554.6,1554.3,6.43371]
[1744376616295,6.62562361,1554.7,1554.3,6.43363]
[1744376616468,0.19333361,1554.7,1554.3,6.43363]
[1744376616795,12.86563,1554.6,1554.3,6.43363]
[1744376616962,6.43279,1554.6,1554.3,6.43363]
[1744376617159,12.86555,1554.6,1554.3,6.43363]
[1744376617360,12.86555,1554.6,1554.2,9.17556251]
[1744376617361,6.43295,1554.5,1554.2,15.60966251]
[1744376618882,12.86608,1554.5,1554.2,7.2599]
[1744376619061,6.43343,1554.4,1554.2,0.8258]
[1744376619997,12.86629,1554.5,1554.2,0.8258]
[1744376620190,6.43341,1554.4,1554.2,0.8258]
[1744376621803,6.43295,1554.5,1554.2,7.25992]
[1744376622108,12.86607,1554.5,1554.2,7.25987]
[1744376622290,6.43295,1554.5,1554.2,7.25987]
[1744376622512,12.86619,1554.5,1554.2,7.25987]
[1744376622708,6.43376,1554.3,1554.2,0.8258]
[1744376623006,6.43376,1554.3,1554.1,3.66191614]
[1744376623587,6.56257,1554.4,1554.1,10.09649614]
[1744376623907,6.43347,1554.4,1554.1,10.09638614]
[1744376624269,12.8672,1554.4,1554.1,10.09638614]
[1744376624483,0.1291,1554.6,1554.1,5.39287575]
[1744376624670,6.43279,1554.6,1554.3,10.09547614]
[1744376624891,6.43294,1554.5,1554.3,10.09547614]
[1744376625097,12.866,1554.5,1554.3,3.66191614]
[1744376625266,6.49642361,1554.7,1554.2,3.7664]
[1744376625465,6.43309,1554.5,1554.2,10.26468677]
[1744376625699,12.93056361,1554.5,1554.2,10.20035]
[1744376625965,6.49732361,1554.5,1554.2,10.20035]
[1744376626170,12.93061361,1554.5,1554.2,10.20035]
[1744376626470,6.43339,1554.4,1554.2,3.7664]
[1744376627305,12.86689,1554.4,1554.2,3.7664]
[1744376627491,12.86689,1554.4,1554.2,3.0]
[1744376628086,12.93112361,1554.4,1554.2,3.0]
[1744376629572,6.43459,1554.1,1554.0,0.7801]
[1744376629906,7.73953236,1554.4,1554.1,6.43452]
[1744376630086,14.17315236,1554.4,1554.1,10.09643614]
[1744376630371,14.17315236,1554.4,1554.1,3.66191614]
[1744376630804,6.43381,1554.3,1554.1,3.66191614]
[1744376631010,12.86773,1554.3,1554.1,3.66191614]
[1744376631204,12.93196361,1554.3,1554.1,3.66191614]
[1744376631796,6.43381,1554.3,1554.1,3.66191614]
[1744376632413,6.4343,1554.2,1554.0,0.7801]
[1744376632584,12.86787,1554.3,1554.0,7.21506]
[1744376633117,6.4339,1554.3,1554.0,13.71422462]
[1744376633318,6.4339,1554.3,1554.0,13.64988]
[1744376633678,12.8678,1554.3,1554.0,7.21498]
[1744376633979,6.43427,1554.2,1554.0,0.7801]
[1744376634381,6.4339,1554.3,1554.0,7.21502]
[1744376634596,6.43453,1554.2,1554.0,0.7801]
[1744376634794,6.43624,1553.7,1553.6,0.7767]
[1744376635002,12.87275,1553.7,1553.4,4.43861614]
[1744376635612,6.43624,1553.7,1553.4,12.60751775]
[1744376636218,6.43624,1553.7,1553.4,12.60739775]
[1744376636420,6.43807,1553.3,1553.1,7.66038231]
[1744376636628,6.56717,1553.3,1553.1,7.66038231]
[1744376636925,6.43807,1553.3,1553.1,7.66038231]
[1744376637541,6.43832,1553.2,1553.1,7.41038231]
[1744376637881,6.50255361,1553.2,1553.1,7.41038231]
[1744376638116,6.63165361,1553.2,1553.1,7.41038231]
[1744376638416,6.43705,1553.6,1553.1,10.91858614]
[1744376638591,0.06423361,1553.5,1553.2,6.43831]
[1744376638802,6.43691,1553.6,1553.2,6.43816]
[1744376639005,7.73065936,1553.6,1553.2,6.43816]
[1744376639200,7.73065936,1553.6,1553.1,4.48021614]
[1744376639201,6.565,1553.8,1553.4,0.7785]
[1744376639415,6.62923361,1553.8,1553.4,7.21565]
[1744376639622,13.06527361,1553.8,1553.4,7.21565]
[1744376639927,6.43631,1553.7,1553.4,0.7785]
[1744376640237,12.87272,1553.7,1553.3,10.09976614]
[1744376640412,1.287272,1553.6,1553.3,10.09976614]
[1744376640599,7.78836561,1553.6,1553.3,3.66191614]
[1744376640804,6.50109361,1553.6,1553.3,3.66191614]
[1744376641004,6.50109361,1553.6,1553.3,10.09974614]
[1744376641532,12.93793361,1553.6,1553.2,7.21492]
[1744376641739,6.43756,1553.4,1553.1,6.43864]
[1744376641900,6.50179361,1553.4,1553.1,6.43864]
[1744376642096,0.06423361,1553.4,1553.0,1.25513382]
[1744376642397,6.56463,1553.9,1553.5,6.43704]
[1744376642595,6.56463,1553.9,1553.5,7.20587]
[1744376642596,0.656463,1553.8,1553.5,7.20587]
[1744376642934,6.50059361,1553.7,1553.3,14.60462]
[1744376643117,6.43679,1553.6,1553.3,21.04238]
[1744376643439,6.50059361,1553.7,1553.4,6.43743]
[1744376643638,6.43593,1553.8,1553.5,6.43702]
[1744376643845,6.50016361,1553.8,1553.5,6.43702]
[1744376644236,6.5638,1554.1,1553.7,6.43624]
[1744376644541,0.06423361,1554.0,1553.7,6.4361]
[1744376644851,12.99856,1554.1,1553.8,6.43549]
[1744376644852,0.1291,1554.1,1553.8,6.43549]
[1744376645007,6.49852361,1554.2,1553.8,6.43549]
[1744376645207,12.86963,1554.1,1553.7,12.87229]
[1744376645435,7.72814636,1554.1,1553.7,12.87229]
[1744376645741,6.56296,1554.3,1553.7,6.43624]
[1744376646052,13.06135361,1554.3,1553.9,13.6493]
[1744376646211,12.99712,1554.3,1553.9,13.6493]
[1744376646413,12.99712,1554.3,1553.9,7.21399]
[1744376646639,12.99712,1554.3,1553.9,13.64927]
[1744376646839,14.77530442,1554.3,1553.9,13.64927]
[1744376647105,8.34114442,1554.3,1553.9,13.64927]
[1744376647336,1.97151803,1554.3,1554.0,6.435]
[1744376647571,11.21819419,1554.4,1554.0,12.86989]
[1744376647751,11.2824278,1554.4,1554.0,12.86989]
[1744376648123,6.49770361,1554.4,1554.0,12.86989]
[1744376648449,0.06423361,1554.4,1554.1,6.43455]
[1744376648637,0.06423361,1554.4,1554.1,12.86902]
[1744376648831,12.99521,1554.5,1554.1,6.43447]
[1744376649137,0.06423361,1554.4,1554.1,6.43447]
[1744376650148,15.033741,1554.5,1554.1,12.86893]
[1744376652372,6.43391,1554.3,1554.0,6.43488]
[1744376652738,6.43391,1554.3,1554.0,12.86975]
[1744376653854,12.93121361,1554.4,1554.0,12.86975]
[1744376654062,14.44109707,1554.4,1554.0,12.86975]
[1744376654373,14.37686346,1554.4,1554.0,12.86974]
[1744376655235,7.94333346,1554.4,1554.1,6.43458]
[1744376655439,14.44131707,1554.4,1554.0,6.43487]
[1744376655739,14.37708346,1554.4,1554.0,6.43487]
[1744376656473,14.37708346,1554.4,1554.0,12.86974]
[1744376656875,14.37708346,1554.4,1554.0,14.28186199]
[1744376657075,12.8672,1554.4,1554.0,14.28186199]
[1744376657373,6.49768361,1554.4,1554.0,14.28186199]
[1744376658580,6.43259,1554.6,1554.2,7.23698]
[1744376658743,12.86525,1554.6,1554.3,6.43364]
[1744376658951,6.43259,1554.6,1554.3,6.43364]
[1744376659175,12.86524,1554.6,1554.3,6.43364]
[1744376659455,6.43259,1554.6,1554.3,6.43364]
[1744376659865,12.86536,1554.6,1554.3,6.43364]
[1744376660079,12.92959361,1554.6,1554.3,6.43364]
[1744376663973,7.22390236,1554.7,1554.4,6.43314]
[1744376664176,6.43335,1554.4,1554.2,3.803]
[1744376664388,12.86631,1554.5,1554.2,3.803]
[1744376664775,6.49773361,1554.4,1554.2,0.803]
[1744376664953,6.4335,1554.4,1554.2,0.803]
[1744376666087,12.93039361,1554.5,1554.2,0.803]
[1744376666289,6.43338,1554.4,1554.2,0.803]
[1744376666990,7.72606936,1554.5,1554.2,7.23717]
[1744376667179,14.15925936,1554.5,1554.2,7.23717]
[1744376667596,14.15925936,1554.5,1554.2,0.803]
[1744376667597,6.43339,1554.4,1554.2,0.803]
[1744376667781,12.86689,1554.4,1554.2,0.803]
[1744376667983,14.28288294,1554.4,1554.2,0.803]
[1744376668894,7.84938294,1554.4,1554.2,0.803]
[1744376670116,14.28289294,1554.4,1554.2,0.803]
[1744376670304,7.84938294,1554.4,1554.2,0.803]
[1744376671093,6.43339,1554.4,1554.2,0.803]
[1744376671710,0.06423361,1554.6,1554.2,4.46491614]
[1744376671868,6.43263,1554.6,1554.3,6.43347]
[1744376672063,6.43263,1554.6,1554.3,12.86711]
[1744376672382,6.43263,1554.6,1554.1,3.66191614]
[1744376672583,6.43452,1554.2,1553.9,6.90786992]
[1744376672805,6.49813361,1554.3,1554.0,6.43499]
[1744376672964,6.4339,1554.3,1554.1,0.7658]
[1744376673164,12.99611,1554.4,1554.1,0.7658]
[1744376673901,6.43379,1554.3,1554.1,0.7658]
[1744376674412,6.43479,1554.1,1553.8,3.0]
[1744376674564,6.43472,1554.1,1553.8,6.43569]
[1744376674767,6.43472,1554.1,1553.9,0.7699]
[1744376674976,6.435,1554.0,1553.9,0.7699]
[1744376675398,6.435,1554.0,1553.8,0.7735]
[1744376677274,12.87034,1554.0,1553.8,0.7735]
[1744376678205,6.435,1554.0,1553.8,0.7735]
[1744376679100,6.43391,1554.3,1553.9,12.87072]
[1744376679305,6.56354,1554.2,1553.8,8.573784]
[1744376679616,12.99803,1554.2,1553.8,8.573784]
[1744376679770,6.43397,1554.3,1553.9,0.06434801]
[1744376680104,0.1291,1554.1,1553.6,3.8193]
[1744376680274,6.43595,1553.8,1553.6,3.8193]
[1744376680475,6.43542,1553.9,1553.6,3.8193]
[1744376680890,6.49937361,1554.0,1553.6,10.2558]
[1744376681071,6.43514,1554.0,1553.6,13.91771614]
[1744376681272,6.49983361,1553.9,1553.6,0.8193]
[1744376681472,6.43555,1553.9,1553.6,0.8193]
[1744376681901,6.43585,1553.8,1553.6,0.8193]
[1744376682310,6.43681,1553.6,1553.3,4.43611614]
[1744376682603,6.43638,1553.7,1553.3,7.21204]
[1744376682832,6.43637,1553.7,1553.4,6.43748]
[1744376683025,12.87277,1553.7,1553.3,8.670984]
[1744376683223,6.50060361,1553.7,1553.3,10.87388614]
[1744376683422,6.50060361,1553.7,1553.3,17.31168614]
[1744376683627,6.565,1553.8,1553.4,6.43749]
[1744376683933,12.87186,1553.8,1553.4,12.87498]
[1744376684239,12.87186,1553.8,1553.4,6.43749]
[1744376684402,7.72950936,1553.8,1553.4,6.43749]
[1744376684608,12.93534361,1553.9,1553.5,6.43704]
[1744376684805,0.06423361,1553.9,1553.6,7.19797]
[1744376685010,6.5634,1554.2,1553.8,6.43566]
[1744376685244,0.06423361,1554.1,1553.8,6.43566]
[1744376686809,6.49885361,1554.1,1553.8,6.43566]
[1744376687005,12.86786,1554.3,1553.9,7.22313]
[1744376687212,12.93201361,1554.3,1553.9,7.22309]
[1744376688220,6.4342,1554.2,1553.9,7.22309]
[1744376688646,12.93227361,1554.3,1553.9,7.22309]
[1744376688845,6.43417,1554.2,1553.9,0.7878]
[1744376689348,12.86847,1554.2,1553.9,0.7878]
[1744376689553,0.19333361,1554.1,1553.7,0.8012]
[1744376689710,12.87071,1554.0,1553.7,0.8012]
[1744376690350,12.93494361,1554.0,1553.7,0.8012]
[1744376690650,14.24134797,1554.0,1553.7,0.8012]
[1744376690848,0.1291,1553.9,1553.3,1.32506733]
[1744376691049,6.43594,1553.8,1553.4,6.43723]
[1744376691437,13.00026,1553.9,1553.5,7.19396]
[1744376691640,6.43586,1553.8,1553.5,7.19396]
[1744376694159,7.99530644,1553.9,1553.5,13.63092]
[1744376694326,14.17664436,1554.0,1553.6,6.4364]
[1744376694646,6.56378,1554.1,1553.8,0.8237]
[1744376694852,6.49891361,1554.1,1553.8,7.25952]
[1744376695057,13.94237,1554.2,1553.8,7.25952]
[1744376695058,20.37686,1554.2,1553.8,7.25952]
[1744376695238,12.93383361,1554.1,1553.8,0.8237]
[1744376695955,1.5,1554.0,1553.8,0.8237]
[1744376697725,1.5,1554.0,1553.8,7.2592]
[1744376697927,6.4342,1554.2,1553.9,6.43542]
[1744376698148,12.93284361,1554.2,1553.8,13.69491]
[1744376698455,12.93284361,1554.2,1553.8,8.99488261]
[1744376698751,12.93281361,1554.2,1553.8,8.99488261]
[1744376699055,6.4342,1554.2,1553.8,15.43059261]
[1744376699557,6.49843361,1554.2,1553.8,15.43059261]
[1744376699754,6.4346,1554.1,1553.8,7.2592]
[1744376699959,12.86851,1554.2,1553.8,7.2592]
[1744376700168,6.49843361,1554.2,1553.8,13.6949]
[1744376700345,6.49843361,1554.2,1553.8,13.69492]
[1744376700531,6.43471,1554.1,1553.8,0.8237]
[1744376700861,6.43626,1553.7,1553.4,0.802]
[1744376701023,0.1291,1553.7,1553.2,7.20052]
[1744376701224,6.43722,1553.5,1553.2,0.7623]
[1744376701424,6.43722,1553.5,1553.1,10.10052614]
[1744376701425,6.50193361,1553.4,1553.1,0.7623]
[1744376701724,13.06873361,1553.4,1553.1,0.7623]
[1744376701921,1.43597336,1553.4,1552.9,0.7658]
[1744376702125,6.43885,1553.1,1552.9,0.7658]
[1744376702557,6.50218361,1553.3,1552.9,0.7658]
[1744376702724,6.63099361,1553.4,1553.0,6.43901]
[1744376702922,7.379,1553.5,1553.2,0.7616]
[1744376703129,13.88042361,1553.5,1553.2,0.7616]
[1744376703332,13.81619,1553.5,1553.2,0.7616]
[1744376703670,7.379,1553.5,1553.2,7.1999]
[1744376703873,0.1291,1553.7,1553.2,2.125456]
[1744376704032,6.43602,1553.8,1553.5,0.7872]
[1744376704452,12.87224,1553.8,1553.5,0.7872]
[1744376704760,6.43602,1553.8,1553.5,0.7872]
[1744376704964,6.50064361,1553.7,1553.3,7.21252]
[1744376705140,6.50064361,1553.7,1553.4,6.43737]
[1744376705141,0.84339797,1553.7,1553.4,6.43737]
[1744376705464,0.06423361,1553.7,1553.4,12.87474]
[1744376705659,0.06423361,1553.7,1553.3,7.21251]
[1744376705966,6.50060361,1553.7,1553.3,13.65032]
[1744376706564,6.50060361,1553.7,1553.3,13.65028]
[1744376706758,6.43678,1553.6,1553.3,0.7747]
[1744376706960,7.27412161,1553.5,1553.2,3.0]
[1744376707261,6.63044361,1553.5,1553.2,3.0]
[1744376707572,6.56541,1553.7,1553.3,6.43788]
[1744376707784,6.62905361,1553.9,1553.4,12.87462]
[1744376708067,0.06423361,1553.9,1553.6,12.87282]
[1744376708372,1.46503897,1553.9,1553.5,0.8243]
[1744376708577,6.4366,1553.7,1553.3,7.26201]
[1744376708781,0.06423361,1553.6,1553.3,7.26201]
[1744376708939,6.50101361,1553.6,1553.3,7.26213]
[1744376709139,12.93724361,1553.7,1553.3,7.26207]
[1744376709366,6.43673,1553.6,1553.3,0.8243]
[1744376709567,6.43673,1553.6,1553.3,7.26215]
[1744376709867,7.80725797,1553.7,1553.3,7.26215]
[1744376710068,1.37086797,1553.7,1553.4,6.43737]
[1744376710568,1.37086797,1553.7,1553.3,13.69993]
[1744376710569,14.24351797,1553.7,1553.3,13.69993]
[1744376710868,6.56496,1553.8,1553.4,6.43732]
[1744376711173,6.62931361,1553.8,1553.4,6.43734]
[1744376711376,13.06541361,1553.8,1553.4,6.43734]
[1744376711540,12.87291,1553.7,1553.3,13.69994]
[1744376711741,0.06423361,1553.6,1553.3,7.26208]
[1744376711935,0.06423361,1553.6,1553.4,6.43745]
[1744376712241,13.06526361,1553.8,1553.4,6.43738]
[1744376712477,1.37075997,1553.7,1553.4,6.43738]
[1744376712674,7.80708997,1553.7,1553.3,7.26208]
[1744376712877,7.80708997,1553.7,1553.3,13.69986]
[1744376713250,1.37075997,1553.7,1553.4,6.43738]
[1744376713481,1.37075997,1553.7,1553.4,12.87476]
[1744376713783,1.37075997,1553.7,1553.4,6.43738]
[1744376714007,0.1291,1553.8,1553.3,0.8243]
[1744376714145,6.62919361,1553.8,1553.4,6.43728]
[1744376714490,6.62919361,1553.8,1553.4,12.87464]
[1744376714873,6.62919361,1553.8,1553.5,6.43703]
[1744376715064,0.1291,1553.8,1553.5,6.43697]
[1744376715383,0.1291,1553.8,1553.5,6.43703]
[1744376715776,0.9291,1553.8,1553.5,6.43695]
[1744376715983,0.9291,1553.8,1553.5,12.87392]
[1744376716279,0.9291,1553.8,1553.5,6.43695]
[1744376716442,0.8,1553.8,1553.7,6.43624]
[1744376717582,0.8,1553.8,1553.6,6.43647]
[1744376718590,0.8,1553.8,1553.6,12.87302]
[1744376718891,0.8,1553.8,1553.6,6.43647]
[1744376719065,0.8,1553.8,1553.6,12.87302]
[1744376719267,0.8,1553.8,1553.6,14.41552061]
[1744376719453,0.8,1553.8,1553.7,6.43624]
[1744376720294,0.8,1553.8,1553.6,7.97897061]
[1744376720869,0.8,1553.8,1553.5,14.941231]
[1744376721070,0.8,1553.8,1553.6,6.43665]
[1744376722274,0.8,1553.8,1553.6,12.87318]
[1744376722479,0.8,1553.8,1553.7,6.43624]
[1744376725314,0.1291,1554.2,1553.9,12.87056]
[1744376725472,0.84962461,1554.2,1553.9,6.43526]
[1744376725791,4.91382419,1554.4,1554.1,6.43441]
[1744376725995,4.9780578,1554.4,1554.1,6.43441]
[1744376726180,4.8489578,1554.4,1554.1,12.86889]
[1744376726369,4.78472419,1554.4,1554.2,6.43415]
[1744376726569,4.78472419,1554.4,1554.2,12.86821]
[1744376726770,4.78472419,1554.4,1554.2,6.43406]
[1744376727810,11.70310997,1554.4,1554.0,7.2657]
[1744376728013,5.26961997,1554.4,1554.1,6.43447]
[1744376728209,4.78472419,1554.4,1554.2,6.43415]
[1744376729309,4.78472419,1554.4,1554.0,7.26561]
[1744376729511,12.86707,1554.4,1554.0,7.26561]
[1744376729684,6.62646361,1554.5,1554.1,6.43444]
[1744376730012,7.93237297,1554.5,1554.1,12.86891]
[1744376730379,1.49924297,1554.5,1554.2,6.43414]
[1744376730707,1.49924297,1554.5,1554.2,6.43407]
[1744376730912,1.49924297,1554.5,1554.2,12.86812]
[1744376731112,1.30590936,1554.5,1554.2,12.86812]
[1744376731327,6.62599361,1554.6,1554.2,12.86812]
[1744376731620,6.62599361,1554.6,1554.3,6.43376]
[1744376731821,4.91382419,1554.8,1554.5,6.43293]
[1744376732028,0.19333361,1554.8,1554.3,7.18612]
[1744376732233,6.43223,1554.7,1554.3,13.61974]
[1744376732381,6.43223,1554.7,1554.3,15.34790561]
[1744376732585,12.99279,1554.8,1554.4,6.4333]
[1744376732918,0.06423361,1554.8,1554.4,6.43335]
[1744376733118,11.4093578,1554.9,1554.5,12.86525]
[1744376733280,4.9780578,1554.9,1554.6,6.43234]
[1744376733486,4.78472419,1554.9,1554.7,6.43209]
[1744376735894,6.49516361,1555.0,1554.7,6.43209]
[1744376736094,14.21683663,1555.0,1554.6,7.24394]
[1744376736294,14.15260302,1555.0,1554.6,13.67632]
[1744376736503,6.43134,1554.9,1554.6,7.24394]
[1744376738318,6.43134,1554.9,1554.6,13.67634]
[1744376738619,6.43134,1554.9,1554.6,7.24394]
[1744376738816,0.19333361,1554.8,1554.5,6.43286]
[1744376739203,6.62522361,1554.8,1554.4,13.78925]
[1744376739528,6.43224,1554.7,1554.4,20.22248]
[1744376739706,6.62511361,1554.8,1554.4,20.22248]
[1744376739707,6.56088,1554.8,1554.4,20.22248]
[1744376740218,12.99274,1554.8,1554.4,20.22248]
[1744376740386,6.56088,1554.8,1554.4,20.22248]
[1744376740816,6.56088,1554.8,1554.5,6.43289]
[1744376741020,7.8268205,1554.8,1554.5,6.43289]
[1744376741318,7.89105411,1554.8,1554.5,6.43289]
[1744376742024,0.1291,1555.1,1554.7,3.66191614]
[1744376742317,0.1291,1555.3,1555.0,7.25052]
[1744376742619,0.1291,1555.3,1555.0,13.68126]
[1744376742818,6.49354361,1555.4,1555.1,6.43043]
[1744376743125,7.79870197,1555.4,1555.1,6.43043]
[1744376743292,7.79870197,1555.4,1555.0,7.25052]
[1744376743820,1.30515836,1555.4,1555.1,12.86049]
[1744376743989,13.05115361,1555.5,1555.1,12.86049]
[1744376744190,6.49353361,1555.4,1555.0,7.25064]
[1744376744422,6.49353361,1555.4,1555.0,13.68138]
[1744376744598,12.92290361,1555.4,1555.0,13.68138]
[1744376745324,6.49353361,1555.4,1555.0,13.68138]
[1744376745519,12.92290361,1555.4,1555.0,13.68138]
[1744376745722,12.92290361,1555.4,1555.0,15.09849346]
[1744376745890,6.49353361,1555.4,1555.0,15.09849346]
[1744376746394,6.49353361,1555.4,1555.1,6.43028]
[1744376747024,0.1291,1555.3,1555.1,6.43028]
[1744376747204,6.55881,1555.3,1555.0,8.66776346]
[1744376747398,6.55881,1555.3,1555.0,15.09851346]
[1744376747812,12.98862,1555.3,1555.0,8.66775346]
[1744376748012,12.98862,1555.3,1555.0,2.23700346]
[1744376748205,6.55881,1555.3,1555.0,8.66782346]